fUST/lending_fUST_20251002
["ID","MTS","AMOUNT","RATE_DAILY","PERIOD"]
[388822214,1759392627951,-500.0,0.00033856,60]
[388822215,1759392627999,-523.54,0.00033856,60]
[388822216,1759392628050,-500.0,0.00033856,60]
[388822217,1759392628099,-500.0,0.00033856,60]
[388822218,1759392628148,-500.0,0.00033856,60]
[388822219,1759392628200,-3320.28,0.00033856,60]
[388822220,1759392628250,-500.0,0.00033856,60]
[388822221,1759392628299,-500.0,0.00033856,60]
[388822222,1759392628348,-523.54,0.00033856,60]
[388822223,1759392628396,-500.0,0.00033856,60]
[388822224,1759392628446,-500.0,0.00033856,60]
[388822225,1759392628496,-500.0,0.00033856,60]
[388822226,1759392628548,-3320.28,0.00033856,60]
[388822227,1759392628610,-500.0,0.00033856,60]
[388822228,1759392628662,-500.0,0.00033856,60]
[388822229,1759392628713,-523.54601178,0.00033856,60]
[388822230,1759392628763,-500.0,0.00033856,60]
[388822231,1759392628813,-500.0,0.00033856,60]
[388822232,1759392628864,-500.0,0.00033856,60]
[388822233,1759392628917,-3320.28,0.00033856,60]
[388822234,1759392628967,-378.55626248,0.00033856,60]
[388822235,1759392629019,-500.0,0.00033856,60]
[388822236,1759392629072,-500.0,0.00033856,60]
[388822237,1759392629333,-424.51,0.00033856,60]
[388822238,1759392629384,-692.57,0.00033856,60]
[388822239,1759392629434,-500.0,0.00033856,60]
[388822240,1759392629485,-3320.28,0.00033856,60]
[388822241,1759392629542,-500.0,0.00033856,60]
[388822242,1759392629594,-2124.97,0.00033856,60]
[388822243,1759392629646,-692.57,0.00033856,60]
[388822244,1759392629697,-500.0,0.00033856,60]
[388822245,1759392629750,-500.0,0.00033856,60]
[388822246,1759392629801,-500.0,0.00033856,60]
[388822247,1759392629853,-2124.97,0.00033856,60]
[388822248,1759392629903,-500.0,0.00033856,60]
[388822249,1759392629951,-692.57,0.00033856,60]
[388822250,1759392629999,-500.0,0.00033856,60]
[388822251,1759392630047,-500.0,0.00033856,60]
[388822252,1759392630096,-500.0,0.00033856,60]
[388822253,1759392630145,-2124.97,0.00033856,60]
[388822254,1759392630194,-500.0,0.00033856,60]
[388822255,1759392630242,-692.57,0.00033856,60]
[388822256,1759392630288,-500.0,0.00033856,60]
[388822257,1759392630335,-500.0,0.00033856,60]
[388822258,1759392630382,-500.0,0.00033856,60]
[388822259,1759392630431,-2124.97,0.00033856,60]
[388822260,1759392630480,-500.0,0.00033856,60]
[388822261,1759392630530,-692.57,0.00033856,60]
[388822262,1759392630578,-500.0,0.00033856,60]
[388822263,1759392630627,-500.0,0.00033856,60]
[388822264,1759392630677,-500.0,0.00033856,60]
[388822265,1759392630725,-500.0,0.00033856,60]
[388822266,1759392630772,-500.0,0.00033856,60]
[388822267,1759392630822,-2124.97,0.00033856,60]
[388822268,1759392630869,-500.0,0.00033856,60]
[388822269,1759392630916,-692.57,0.00033856,60]
[388822270,1759392630965,-500.0,0.00033856,60]
[388822271,1759392631017,-500.0,0.00033856,60]
[388822272,1759392631065,-500.0,0.00033856,60]
[388822273,1759392631115,-3320.28,0.00033856,60]
[388822274,1759392631163,-500.0,0.00033856,60]
[388822275,1759392631211,-692.57,0.00033856,60]
[388822276,1759392631264,-500.0,0.00033856,60]
[388822277,1759392631312,-2124.97,0.00033856,60]
[388822278,1759392631360,-500.0,0.00033856,60]
[388822279,1759392631410,-500.0,0.00033856,60]
[388822280,1759392631459,-500.0,0.00033856,60]
[388822281,1759392631510,-3320.28,0.00033856,60]
[388822282,1759392631560,-500.0,0.00033856,60]
[388822283,1759392631609,-692.57,0.00033856,60]
[388822284,1759392631656,-500.0,0.00033856,60]
[388822285,1759392631703,-500.0,0.00033856,60]
[388822286,1759392631751,-294.6,0.00033856,60]
[388822287,1759392631797,-500.0,0.00033856,60]
[388822288,1759392631845,-2124.97,0.00033856,60]
[388822289,1759392631892,-500.0,0.00033856,60]
[388822290,1759392631939,-500.0,0.00033856,60]
[388822291,1759392631988,-692.57,0.00033856,60]
[388822292,1759392632037,-500.0,0.00033856,60]
[388822293,1759392632086,-558.59,0.00033856,60]
[388822294,1759392632135,-500.0,0.00033856,60]
[388822295,1759392632184,-2124.97,0.00033856,60]
[388822296,1759392632233,-163.04345884,0.00033856,60]
[388822297,1759392632282,-500.0,0.00033856,60]
[388822298,1759392632331,-500.0,0.00033856,60]
[388822302,1759392632380,-692.57,0.00033856,60]
[388822305,1759392632429,-558.59,0.00033856,60]
[388822306,1759392632478,-500.0,0.00033856,60]
[388822307,1759392632525,-3320.28,0.00033856,60]
[388822310,1759392632574,-2124.97,0.00033856,60]
[388822316,1759392632621,-500.0,0.00033856,60]
[388822317,1759392632670,-500.0,0.00033856,60]
[388822318,1759392632718,-692.57,0.00033856,60]
[388822324,1759392632769,-558.59,0.00033856,60]
[388822330,1759392632819,-3320.28,0.00033856,60]
[388822335,1759392632868,-500.0,0.00033856,60]
[388822340,1759392632917,-2124.97,0.00033856,60]
[388822345,1759392632966,-500.0,0.00033856,60]
[388822351,1759392633015,-500.0,0.00033856,60]
[388822357,1759392633063,-500.0,0.00033856,60]
[388822363,1759392633110,-692.57,0.00033856,60]
[388822368,1759392633157,-558.59,0.00033856,60]
[388822377,1759392633206,-500.0,0.00033856,60]
[388822383,1759392633258,-3320.28,0.00033856,60]
[388822389,1759392633306,-2124.97,0.00033856,60]
[388822395,1759392633356,-500.0,0.00033856,60]
[388822401,1759392633404,-500.0,0.00033856,60]
[388822408,1759392633453,-692.57,0.00033856,60]
[388822414,1759392633503,-558.59,0.00033856,60]
[388822420,1759392633553,-2124.97,0.00033856,60]
[388822426,1759392633602,-460.0,0.00033856,60]
[388822432,1759392633652,-3320.28,0.00033856,60]
[388822438,1759392633699,-500.0,0.00033856,60]
[388822445,1759392633748,-500.0,0.00033856,60]
[388822450,1759392633801,-500.0,0.00033856,60]
[388822456,1759392633851,-558.59,0.00033856,60]
[388822463,1759392633908,-2124.97,0.00033856,60]
[388822474,1759392634098,-500.0,0.00033856,60]
[388822480,1759392634147,-500.0,0.00033856,60]
[388822486,1759392634196,-3320.28,0.00033856,60]
[388822493,1759392634247,-558.59,0.00033856,60]
[388822499,1759392634296,-558.74,0.00033856,60]
[388822505,1759392634347,-500.0,0.00033856,60]
[388822511,1759392634398,-2124.97,0.00033856,60]
[388822517,1759392634447,-500.0,0.00033856,60]
[388822524,1759392634501,-3320.28,0.00033856,60]
[388822531,1759392634551,-692.57,0.00033856,60]
[388822537,1759392634602,-558.59,0.00033856,60]
[388822543,1759392634651,-500.0,0.00033856,60]
[388822550,1759392634701,-500.0,0.00033856,60]
[388822553,1759392634752,-2124.97,0.00033856,60]
[388822554,1759392634801,-500.0,0.00033856,60]
[388822556,1759392634851,-3320.28,0.00033856,60]
[388822557,1759392634897,-558.59,0.00033856,60]
[388822558,1759392634946,-692.57,0.00033856,60]
[388822559,1759392634993,-500.0,0.00033856,60]
[388822560,1759392635042,-500.0,0.00033856,60]
[388822561,1759392635093,-500.0,0.00033856,60]
[388822562,1759392635143,-500.0,0.00033856,60]
[388822563,1759392635192,-3320.28,0.00033856,60]
[388822564,1759392635242,-2124.97,0.00033856,60]
[388822565,1759392635290,-558.59,0.00033856,60]
[388822566,1759392635337,-500.0,0.00033856,60]
[388822567,1759392635384,-500.0,0.00033856,60]
[388822568,1759392635434,-692.57,0.00033856,60]
[388822569,1759392635482,-500.0,0.00033856,60]
[388822570,1759392635530,-500.0,0.00033856,60]
[388822571,1759392635580,-3320.28,0.00033856,60]
[388822572,1759392635628,-2124.97,0.00033856,60]
[388822573,1759392635678,-500.0,0.00033856,60]
[388822574,1759392635728,-558.59,0.00033856,60]
[388822575,1759392635780,-692.57,0.00033856,60]
[388822576,1759392635827,-500.0,0.00033856,60]
[388822577,1759392635875,-500.0,0.00033856,60]
[388822578,1759392635922,-500.0,0.00033856,60]
[388822579,1759392635972,-3320.28,0.00033856,60]
[388822580,1759392636022,-2124.97,0.00033856,60]
[388822581,1759392636067,-558.59,0.00033856,60]
[388822582,1759392636115,-500.0,0.00033856,60]
[388822583,1759392636163,-692.57,0.00033856,60]
[388822584,1759392636210,-500.0,0.00033856,60]
[388822585,1759392636262,-440.0,0.00033856,60]
[388822586,1759392636310,-3320.28,0.00033856,60]
[388822587,1759392636359,-2124.97,0.00033856,60]
[388822588,1759392636405,-692.57,0.00033856,60]
[388822589,1759392636453,-630.40602649,0.00033856,60]
[388822590,1759392636501,-500.0,0.00033856,60]
[388822591,1759392636550,-558.59,0.00033856,60]
[388822592,1759392636600,-3320.28,0.00033856,60]
[388822593,1759392636647,-500.0,0.00033856,60]
[388822594,1759392636694,-2124.97,0.00033856,60]
[388822595,1759392636742,-558.59,0.00033856,60]
[388822596,1759392636791,-692.57,0.00033856,60]
[388822597,1759392636839,-500.0,0.00033856,60]
[388822598,1759392636887,-3320.28,0.00033856,60]
[388822599,1759392636936,-2124.97,0.00033856,60]
[388822600,1759392636984,-500.0,0.00033856,60]
[388822601,1759392637032,-692.57,0.00033856,60]
[388822602,1759392637077,-500.0,0.00033856,60]
[388822603,1759392637123,-558.59,0.00033856,60]
[388822604,1759392637171,-3320.28,0.00033856,60]
[388822605,1759392637221,-2124.97,0.00033856,60]
[388822606,1759392637268,-500.0,0.00033856,60]
[388822607,1759392637315,-500.0,0.00033856,60]
[388822608,1759392637362,-692.57,0.00033856,60]
[388822609,1759392637409,-558.59,0.00033856,60]
[388822610,1759392637456,-3320.28,0.00033856,60]
[388822611,1759392637503,-231.591338,0.00033856,60]
[388822612,1759392637551,-500.0,0.00033856,60]
[388822613,1759392637598,-500.0,0.00033856,60]
[388822614,1759392637647,-692.57,0.00033856,60]
[388822615,1759392637695,-2124.97,0.00033856,60]
[388822616,1759392637744,-558.59,0.00033856,60]
[388822617,1759392637791,-3320.28,0.00033856,60]
[388822618,1759392637838,-500.0,0.00033856,60]
[388822619,1759392637884,-500.0,0.00033856,60]
[388822620,1759392637932,-692.68,0.00033856,60]
[388822621,1759392637980,-558.59,0.00033856,60]
[388822622,1759392638030,-2125.15,0.00033856,60]
[388822623,1759392638077,-3320.42,0.00033856,60]
[388822624,1759392638127,-500.0,0.00033856,60]
[388822625,1759392638176,-558.59,0.00033856,60]
[388822626,1759392638228,-150.71658093,0.00033856,60]
[388822627,1759392638279,-500.0,0.00033856,60]
[388822630,1759392638328,-558.59,0.00033856,60]
[388822631,1759392638378,-500.0,0.00033856,60]
[388822632,1759392638428,-558.59,0.00033856,60]
[388822633,1759392638477,-500.0,0.00033856,60]
[388822638,1759392638528,-558.59,0.00033856,60]
[388822641,1759392638579,-558.59,0.00033856,60]
[388822642,1759392638630,-500.0,0.00033856,60]
[388822645,1759392638679,-500.0,0.00033856,60]
[388822647,1759392638865,-558.76,0.00033856,60]
[388822648,1759392638916,-500.0,0.00033856,60]
[388822649,1759392638966,-417.30909549,0.00033856,60]
[388822650,1759392639022,-500.0,0.00033856,60]
[388822651,1759392639070,-500.0,0.00033856,60]
[388822652,1759392639119,-500.0,0.00033856,60]
[388822653,1759392639167,-500.0,0.00033856,60]
[388822654,1759392639224,-500.0,0.00033856,60]
[388822655,1759392639274,-1568.27,0.00033856,60]
[388822656,1759392639323,-1568.27,0.00033856,60]
[388822657,1759392639371,-500.0,0.00033856,60]
[388822658,1759392639420,-500.0,0.00033856,60]
[388822659,1759392639469,-1568.27,0.00033856,60]
[388822660,1759392639520,-1568.27,0.00033856,60]
[388822661,1759392639569,-500.0,0.00033856,60]
[388822662,1759392639621,-108.14973359,0.00033856,60]
[388822709,1759392644272,163.0,0.00024,120]
[388823190,1759392649310,500.0,0.00023,120]
[388823197,1759392649367,500.0,0.00023,120]
[388823204,1759392649427,500.0,0.00023,120]
[388823225,1759392649615,500.0,0.00023,120]
[388823240,1759392649760,500.0,0.00023,120]
[388823247,1759392649815,500.0,0.00023,120]
[388823253,1759392649868,500.0,0.00023,120]
[388823259,1759392649921,500.0,0.00023,120]
[388823265,1759392649973,500.0,0.00023,120]
[388823275,1759392650054,500.0,0.00023,120]
[388823286,1759392650160,500.0,0.00023,120]
[388823294,1759392650235,500.0,0.00023,120]
[388823327,1759392650545,500.0,0.00023,120]
[388823352,1759392650793,500.0,0.00023,120]
[388823378,1759392651038,500.0,0.00023,120]
[388823410,1759392651485,500.0,0.00023,120]
[388823411,1759392651595,500.0,0.00023,120]
[388823418,1759392651675,500.0,0.00023,120]
[388823428,1759392651771,500.0,0.00023,120]
[388823443,1759392651907,500.0,0.00023,120]
[388823451,1759392651976,595.51,0.00023,120]
[388823663,1759392654859,157.0,0.00024,120]
[388823682,1759392655642,150.5,0.00021908,120]
[388823683,1759392655727,150.5,0.00021898,120]
[388823684,1759392655797,182.95,0.00021888,120]
[388823685,1759392656279,500.0,0.00023,120]
[388823823,1759392660726,210.0,0.00024,120]
[388823824,1759392661082,-68.6204972,0.00019,2]
[388823825,1759392661093,-1158.91830819,0.00019099,2]
[388823826,1759392661103,-312.92232814,0.00019112,2]
[388823827,1759392661113,-183.57526215,0.00019212,2]
[388823828,1759392661134,-217.95854522,0.00019502,2]
[388823829,1759392661144,-492.0,0.00019887,2]
[388823830,1759392661155,-500.0,0.00019973,2]
[388823831,1759392661164,-500.0,0.00019973,2]
[388823832,1759392661174,-500.0,0.00019973,2]
[388823833,1759392661184,-500.0,0.00019973,2]
[388823834,1759392661194,-500.0,0.00019973,2]
[388823835,1759392661204,-502.58474246,0.00019973,2]
[388823836,1759392661214,-500.0,0.00019973,2]
[388823837,1759392661225,-452.22561306,0.00019973,2]
[388823838,1759392661238,-429.6711404,0.00019973,2]
[388823839,1759392661248,-501.03166712,0.00019973,2]
[388823840,1759392661258,-500.0,0.00019973,2]
[388823841,1759392661268,-490.49,0.0001998,3]
[388823842,1759392661279,-855.36,0.0001998,3]
[388823843,1759392661289,-427.68,0.0001998,3]
[388823844,1759392661299,-213.84,0.0001998,3]
[388823845,1759392661311,-641.56,0.0001998,3]
[388823846,1759392661321,-500.0,0.00019987,2]
[388823847,1759392661331,-448.79093461,0.00019987,2]
[388823848,1759392661341,-253.279,0.00019988,2]
[388823849,1759392661350,-175.26,0.00019988,2]
[388823850,1759392661360,-500.0,0.00019989,2]
[388823851,1759392661370,-44718.86304316,0.0001999,2]
[388823852,1759392661895,-300.78393599,0.0001999,2]
[388823853,1759392661907,-1382.8095471,0.0001999,2]
[388823854,1759392661922,-7317.10729248,0.0001999,2]
[388823855,1759392661934,-1986.08772207,0.0001999,2]
[388823856,1759392661947,-1239.51115704,0.0001999,2]
[388823857,1759392661959,-1152.68162522,0.0001999,2]
[388823858,1759392661972,-1236.95149689,0.0001999,2]
[388823859,1759392661989,-40665.20418005,0.0001999,2]
[388823860,1759392661999,-300.0,0.0002,2]
[388823861,1759392662011,-153.49840881,0.0002,12]
[388823862,1759392662022,-500.0,0.00020263,2]
[388823863,1759392662032,-500.0,0.00020263,2]
[388823864,1759392662042,-300.0,0.00020285,2]
[388823865,1759392662053,-300.0,0.00020285,2]
[388823866,1759392662063,-300.0,0.00020285,2]
[388823867,1759392662073,-300.0,0.00020285,2]
[388823868,1759392662083,-300.0,0.00020285,2]
[388823869,1759392662093,-300.0,0.00020285,2]
[388823870,1759392662104,-300.0,0.00020285,2]
[388823871,1759392662114,-300.0,0.00020285,2]
[388823872,1759392662124,-300.0,0.00020285,2]
[388823873,1759392662134,-300.0,0.00020285,2]
[388823874,1759392662144,-65.262944,0.00020285,2]
[388823875,1759392662157,-234.737056,0.00020285,2]
[388823876,1759392662167,-163.48,0.00020359,3]
[388823877,1759392662177,-653.93,0.00020369,3]
[388823878,1759392662188,-326.96,0.00020369,3]
[388823879,1759392662198,-574.38,0.00020379,3]
[388823880,1759392662209,-1307.86,0.00020379,3]
[388823881,1759392662220,-300.0,0.00020387,2]
[388823882,1759392662233,-300.0,0.00020387,2]
[388823883,1759392662243,-234.00747223,0.00020391,2]
[388823884,1759392662254,-160.0,0.00020391,2]
[388823885,1759392662264,-293.43242757,0.00020391,2]
[388823886,1759392662276,-1012.984329,0.000204,2]
[388823887,1759392662286,-1000.0,0.00020521,2]
[388823888,1759392662296,-1000.0,0.00020521,2]
[388823889,1759392662306,-155.8260691,0.00020521,2]
[388823890,1759392662316,-1000.0,0.00020521,2]
[388823891,1759392662327,-273.35229736,0.00020521,2]
[388823892,1759392662339,-726.64770264,0.00020521,2]
[388823893,1759392662349,-1047.67995103,0.00020521,2]
[388823894,1759392662360,-500.0,0.00020537,2]
[388823895,1759392662370,-338.74765713,0.0002077,2]
[388823896,1759392662381,-979.01764393,0.000208,2]
[388823897,1759392662391,-500.0,0.00020811,2]
[388823898,1759392662402,-558.4026309,0.00020873,2]
[388823899,1759392662412,-500.0,0.00020873,2]
[388823900,1759392662423,-575.61639827,0.00020873,2]
[388823901,1759392662434,-532.90798676,0.00020873,2]
[388823902,1759392662446,-500.0,0.00020873,2]
[388823903,1759392662457,-500.0,0.00020873,2]
[388823904,1759392662467,-517.46344765,0.00020873,2]
[388823905,1759392662477,-500.0,0.00020873,2]
[388823906,1759392662488,-151.0,0.00020878,2]
[388823907,1759392662498,-151.0,0.00020878,2]
[388823908,1759392662509,-151.0,0.00020878,2]
[388823909,1759392662519,-151.0,0.00020878,2]
[388823910,1759392662531,-151.0,0.00020878,2]
[388823911,1759392662541,-151.0,0.00020878,2]
[388823912,1759392662552,-151.0,0.00020878,2]
[388823913,1759392662563,-151.0,0.00020878,2]
[388823914,1759392662574,-152.58173525,0.00020878,2]
[388823915,1759392662585,-340.59475667,0.00020889,2]
[388823916,1759392662595,-561.86158594,0.00020889,2]
[388823917,1759392662607,-151.0,0.0002089,2]
[388823918,1759392662618,-329.617485,0.0002089,2]
[388823919,1759392662628,-151.0,0.0002089,2]
[388823920,1759392662639,-329.617485,0.0002089,2]
[388823921,1759392662649,-329.617485,0.0002089,2]
[388823922,1759392662660,-329.617485,0.0002089,2]
[388823923,1759392662671,-151.0,0.0002089,2]
[388823924,1759392662682,-151.0,0.0002089,2]
[388823925,1759392662693,-278.791512,0.0002089,2]
[388823926,1759392662703,-151.0,0.0002089,2]
[388823927,1759392662713,-221.012506,0.0002089,2]
[388823928,1759392662723,-221.012506,0.0002089,2]
[388823929,1759392662734,-221.012506,0.0002089,2]
[388823930,1759392662744,-221.012506,0.0002089,2]
[388823931,1759392662754,-151.0,0.0002089,2]
[388823932,1759392662764,-151.0,0.0002089,2]
[388823933,1759392662774,-151.0,0.0002089,2]
[388823934,1759392662785,-151.0,0.0002089,2]
[388823935,1759392662796,-367.109695,0.0002089,2]
[388823936,1759392662807,-367.109695,0.0002089,2]
[388823937,1759392662818,-151.0,0.0002089,2]
[388823938,1759392662828,-152.632074,0.0002089,2]
[388823939,1759392662838,-367.109695,0.0002089,2]
[388823940,1759392662848,-367.109695,0.0002089,2]
[388823941,1759392662858,-151.0,0.0002089,2]
[388823942,1759392662868,-151.0,0.0002089,2]
[388823943,1759392662879,-187.42346,0.0002089,2]
[388823944,1759392662889,-187.42346,0.0002089,2]
[388823945,1759392662900,-187.42346,0.0002089,2]
[388823946,1759392662911,-187.42346,0.0002089,2]
[388823947,1759392662921,-151.0,0.0002089,2]
[388823948,1759392662931,-151.0,0.0002089,2]
[388823949,1759392662942,-151.0,0.0002089,2]
[388823950,1759392662953,-151.0,0.0002089,2]
[388823951,1759392662963,-151.0,0.0002089,2]
[388823952,1759392662974,-151.0,0.0002089,2]
[388823953,1759392662985,-151.0,0.0002089,2]
[388823954,1759392662995,-151.0,0.0002089,2]
[388823955,1759392663005,-151.0,0.0002089,2]
[388823956,1759392663016,-151.0,0.0002089,2]
[388823957,1759392663026,-496.560767,0.0002089,2]
[388823958,1759392663037,-496.560767,0.0002089,2]
[388823959,1759392663047,-496.560767,0.0002089,2]
[388823960,1759392663058,-496.560767,0.0002089,2]
[388823961,1759392663069,-151.0,0.0002089,2]
[388823962,1759392663080,-151.0,0.0002089,2]
[388823963,1759392663091,-151.0,0.0002089,2]
[388823964,1759392663102,-151.0,0.0002089,2]
[388823965,1759392663113,-151.0,0.0002089,2]
[388823966,1759392663123,-151.0,0.0002089,2]
[388823967,1759392663134,-151.0,0.0002089,2]
[388823968,1759392663144,-151.0,0.0002089,2]
[388823969,1759392663155,-151.0,0.0002089,2]
[388823970,1759392663165,-151.0,0.0002089,2]
[388823971,1759392663176,-151.0,0.0002089,2]
[388823972,1759392663186,-151.0,0.0002089,2]
[388823973,1759392663198,-151.0,0.0002089,2]
[388823974,1759392663208,-151.0,0.0002089,2]
[388823975,1759392663218,-151.0,0.0002089,2]
[388823976,1759392663231,-151.0,0.0002089,2]
[388823977,1759392663242,-151.0,0.0002089,2]
[388823978,1759392663251,-151.0,0.0002089,2]
[388823979,1759392663263,-151.0,0.0002089,2]
[388823980,1759392663275,-276.192333,0.0002089,2]
[388823981,1759392663286,-276.192333,0.0002089,2]
[388823982,1759392663296,-151.0,0.0002089,2]
[388823983,1759392663307,-156.039495,0.0002089,2]
[388823984,1759392663317,-276.192333,0.0002089,2]
[388823985,1759392663328,-276.192333,0.0002089,2]
[388823986,1759392663337,-151.0,0.0002089,2]
[388823987,1759392663348,-151.0,0.0002089,2]
[388823988,1759392663359,-154.801665,0.0002089,2]
[388823989,1759392663368,-24381.16079428,0.0002089,2]
[388823990,1759392663381,-8769.53884972,0.0002089,2]
[388823991,1759392663430,-5916.35200001,0.0002089,2]
[388823992,1759392686273,-2462.8264596,0.0002089,2]
[388823993,1759392686284,-2737.1735404,0.0002089,2]
[388823994,1759392689414,603.14322923,0.00027397,120]
[388823996,1759392725865,153.613936,0.00024849,30]
[388823997,1759392726171,153.613936,0.00024762,30]
[388823998,1759392727552,153.0,0.00024,120]
[388823999,1759392728936,153.0,0.000262,120]
[388824000,1759392730323,153.0,0.000284,120]
[388824002,1759392846705,318.26681581,0.00026,60]
[388824003,1759392887844,150.5,0.00021908,120]
[388824004,1759392888287,150.5,0.00021898,120]
[388824005,1759392888727,150.5,0.00021888,120]
[388824006,1759392906992,160.0,0.00026,60]
[388824007,1759392968215,160.0,0.00026,60]
[388824012,1759393027675,160.0,0.00026,60]
[388824013,1759393047537,1000.0,0.00025,30]
[388824015,1759393086473,160.0,0.00026,60]
[388824016,1759393096468,253.34,0.00028767,120]
[388824017,1759393117266,1000.0,0.00025,30]
[388824018,1759393148789,1000.0,0.00025,30]
[388824019,1759393175447,1000.0,0.00025,30]
[388824020,1759393214035,1000.0,0.00025,30]
[388824021,1759393220614,1000.0,0.00025,30]
[388824022,1759393267849,153.613936,0.00025,30]
[388824023,1759393268148,153.613936,0.00025,30]
[388824048,1759393816696,375.47,0.00028767,120]
[388824093,1759393837820,-205.53121279,0.00019118,2]
[388824094,1759393837830,-493.40286222,0.0001936,2]
[388824095,1759393837839,-760.25915555,0.00019988,2]
[388824097,1759393837851,-439.74084445,0.00019988,2]
[388824099,1759393837860,-300.0,0.00019989,2]
[388824100,1759393837870,-146.22593071,0.00019989,2]
[388824110,1759393839853,-63.77406929,0.00019989,2]
[388824111,1759393839863,-389.22593071,0.00019989,2]
[388824120,1759393842921,-810.77406929,0.00019989,2]
[388824121,1759393842930,-1436.26004333,0.0001999,2]
[388824122,1759393842970,-3009.61443014,0.0001999,2]
[388824536,1759394303826,500.0,0.00024,120]
[388824537,1759394304569,500.0,0.00024,120]
[388824538,1759394305699,500.0,0.00024,120]
[388824539,1759394305739,152.0,0.00024,120]
[388824540,1759394306482,500.0,0.00024,120]
[388824541,1759394307181,152.0,0.000256,120]
[388824542,1759394307600,500.0,0.00024,120]
[388824543,1759394308551,152.0,0.000271,120]
[388824544,1759394309955,152.0,0.000287,120]
[388824545,1759394310230,500.0,0.00024,120]
[388824546,1759394312119,500.0,0.00024,120]
[388824547,1759394312909,500.0,0.00024,120]
[388824548,1759394313751,500.0,0.00024,120]
[388824549,1759394314541,500.0,0.00024,120]
[388824550,1759394315783,500.0,0.00024,120]
[388824551,1759394316952,500.0,0.00024,120]
[388824552,1759394318093,500.0,0.00024,120]
[388824553,1759394319206,500.0,0.00024,120]
[388824554,1759394320564,500.0,0.00024,120]
[388824555,1759394321667,500.0,0.00024,120]
[388824556,1759394322775,500.0,0.00024,120]
[388824557,1759394324684,500.0,0.00024,120]
[388824558,1759394325463,500.0,0.00024,120]
[388824559,1759394326307,595.51,0.00024,120]
[388824560,1759394328177,749.0,0.0002191,120]
[388824561,1759394328645,749.0,0.000219,120]
[388824562,1759394329240,749.0,0.0002189,120]
[388824563,1759394329681,749.0,0.0002484,120]
[388824564,1759394330137,749.0,0.0002483,120]
[388824565,1759394330734,749.0,0.0002482,120]
[388824567,1759394392388,500.0,0.00024,120]
[388824568,1759394393041,500.0,0.00024,120]
[388824569,1759394428526,642.0,0.0002257,120]
[388824570,1759394429750,642.0,0.00023699,120]
[388824571,1759394431016,642.0,0.00024884,120]
[388824572,1759394432672,642.0,0.00026128,120]
[388824573,1759394433531,642.0,0.00027435,120]
[388824574,1759394447951,152.0,0.0002191,120]
[388824575,1759394448393,152.0,0.000219,120]